[Event "Manhem Chess Week-Elo 2019"]
[Site "Moelnlycke"]
[Date "2019.08.13"]
[Round "4.5"]
[White "Degerfeldt, Sven"]
[Black "Ziegler, Nathalie"]
[Result "1-0"]
[ECO "E92"]
[WhiteElo "1918"]
[BlackElo "1846"]
[Annotator "NA"]
[PlyCount "97"]
[EventDate "2019.08.10"]
[EventType "tourn"]
[EventCountry "SWE"]
[SourceTitle "playchess.com"]
[Source "ChessBase"]
[SourceQuality "1"]
[TimeControl "40/5400+30:1800+30"]

1. d4 {[%emt 0:00:00]} Nf6 {[%emt 0:06:08]} 2. c4 {[%emt 0:00:21]} g6 {[%emt 0:00:08]} 3. Nc3 {[%emt 0:02:05]} Bg7 {[%emt 0:00:05]} 4. e4 {[%emt 0:00:10]} d6 {[%emt 0:00:02]} 5. h3 {[%emt 0:00:14]} O-O {[%emt 0:00:29]} 6. Be3 {[%emt 0:00:19]} e5 {[%emt 0:01:47]} 7. d5 {[%emt 0:05:02]} a5 {[%emt 0:01:14]} 8. Nf3 {[%emt 0:11:52]} Na6 {[%emt 0:01:26]} 9. Be2 {[%emt 0:01:26]} Bd7 {[%emt 0:03:06]} 10. Nd2 $14 {[%emt 0:03:49]} Nc5 {[%emt 0:03:04]} 11. b3 {[%emt 0:01:40]} Ne8 {[%emt 0:05:23]} 12. Qc2 {[%emt 0:16:13]} f5 {[%emt 0:00:30]} 13. O-O-O {[%emt 0:02:15]} Nf6 {[%emt 0:17:31]} 14. f3 {[%emt 0:01:21]} Nh5 {[%emt 0:08:11]} 15. g4 {[%emt 0:03:01]} Ng3 {[%emt 0:03:16]} 16. Rh2 {[%emt 0:01:37]} Qe8 {[%emt 0:07:36]} 17. gxf5 {[%emt 0:05:28]} a4 {[%emt 0:02:02]} 18. b4 {[%emt 0:01:06]} Na6 {[%emt 0:01:45]} 19. a3 {[%emt 0:00:12]} gxf5 {[%emt 0:00:55]} 20. Rg1 {[%emt 0:01:33]} f4 {[%emt 0:02:31]} 21. Bf2 {[%emt 0:00:24]} Nxe2+ {[%emt 0:00:23]} 22. Nxe2 {[%emt 0:00:03]} b5 {[%emt 0:00:07]} 23. Rhg2 {[%emt 0:03:40]} Rf7 {[%emt 0:00:13]} 24. Nxf4 {[%emt 0:00:58]} Rxf4 {[%emt 0:02:44]} 25. Rxg7+ {[%emt 0:00:11]} Kh8 {[%emt 0:00:02]} 26. Be3 {[%emt 0:02:09]} Rf6 {[%emt 0:00:16]} 27. h4 {[%emt 0:01:32]} c5 {[%emt 0:00:26]} 28. dxc6 {[%emt 0:00:50]} Bxc6 {[%emt 0:00:12]} 29. Kb1 {[%emt 0:02:56]} Qe6 {[%emt 0:09:04]} 30. Qd3 {[%emt 0:01:57]} bxc4 {[%emt 0:11:26]} 31. Qxc4 {[%emt 0:01:10]} Qxc4 {[%emt 0:00:07]} 32. Nxc4 {[%emt 0:00:11]} Bb5 {[%emt 0:00:26]} 33. Nb6 {[%emt 0:01:34]} Raf8 {[%emt 0:02:12]} 34. Nd7 {[%emt 0:03:14]} Bxd7 {[%emt 0:01:28]} 35. Rxd7 {[%emt 0:00:12]} Rxf3 {[%emt 0:05:00]} 36. Rgg7 {[%emt 0:00:25]} Rc8 {[%emt 0:02:46]} 37. Rxh7+ {[%emt 0:10:40]} Kg8 {[%emt 0:00:02]} 38. Rdg7+ {[%emt 0:01:40]} Kf8 {[%emt 0:00:02]} 39. Ra7 {[%emt 0:00:45]} Kg8 {[%emt 0:00:36]} 40. Rag7+ {[%emt 0:11:16]} Kf8 {[%emt 0:00:02]} 41. Rg4 {[%emt 0:31:34]} Rxe3 {[%emt 0:15:12]} 42. Rh8+ {[%emt 0:00:12]} Kf7 43. Rxc8 {[%emt 0:00:00]} Rxa3 {[%emt 0:00:02]} 44. Rg2 {[%emt 0:00:00]} Rh3 {[%emt 0:08:11]} 45. b5 {[%emt 0:00:00]} Nb4 {[%emt 0:03:06]} 46. Rc7+ {[%emt 0:00:00]} Kf6 {[%emt 0:00:01]} 47. Rcg7 {[%emt 0:00:00]} Rb3+ {[%emt 0:04:18]} 48. Kc1 {[%emt 0:00:00]} a3 {[%emt 0:01:16]} 49. R2g6# {[%emt 0:00:00]} 1-0

[Event "Manhem Chess Week-Elo 2019"]
[Site "Moelnlycke"]
[Date "2019.08.13"]
[Round "4.6"]
[White "Berg, Roy"]
[Black "Bohlin, Jan"]
[Result "1/2-1/2"]
[ECO "E05"]
[WhiteElo "1913"]
[BlackElo "1724"]
[Annotator "NA"]
[PlyCount "66"]
[EventDate "2019.08.10"]
[EventType "tourn"]
[EventCountry "SWE"]
[SourceTitle "playchess.com"]
[Source "ChessBase"]
[SourceQuality "1"]
[TimeControl "40/5400+30:1800+30"]

1. d4 {[%emt 0:00:00]} Nf6 {[%emt 0:00:00]} 2. Nf3 {[%emt 0:00:00]} d5 {[%emt 0:00:00]} 3. c4 {[%emt 0:00:02]} e6 {[%emt 0:00:00]} 4. g3 {[%emt 0:00:09]} Be7 {[%emt 0:00:00]} 5. Nc3 {[%emt 0:00:09]} O-O {[%emt 0:00:43]} 6. Bg2 {[%emt 0:00:05]} dxc4 {[%emt 0:08:24]} 7. Ne5 {[%emt 0:06:03]} Nc6 $11 {[%emt 0:08:43]} 8. Nxc6 {[%emt 0:25:41]} bxc6 {[%emt 0:00:06]} 9. Bxc6 {[%emt 0:00:17]} Rb8 {[%emt 0:00:04]} 10. O-O {[%emt 0:02:18]} Bb7 {[%emt 0:00:23]} 11. Bxb7 {[%emt 0:06:49]} Rxb7 {[%emt 0:00:04]} 12. e3 {[%emt 0:00:39]} c5 {[%emt 0:09:42]} 13. Qf3 {[%emt 0:28:54]} Nd5 {[%emt 0:02:48]} 14. Rd1 {[%emt 0:00:00]} Rd7 {[%emt 0:06:19]} 15. Qe2 {[%emt 0:02:01]} Nb6 {[%emt 0:10:30]} 16. a4 {[%emt 0:05:57]} cxd4 {[%emt 0:13:00]} 17. exd4 {[%emt 0:00:09]} Rxd4 {[%emt 0:12:24]} 18. Be3 {[%emt 0:00:32]} Rxd1+ {[%emt 0:01:54]} 19. Rxd1 {[%emt 0:00:05]} Qc7 {[%emt 0:11:27]} 20. a5 {[%emt 0:03:19]} Nc8 {[%emt 0:02:01]} 21. Rd4 {[%emt 0:00:36]} Qxa5 {[%emt 0:00:37]} 22. Rxc4 {[%emt 0:00:30]} Nd6 {[%emt 0:00:27]} 23. Ra4 {[%emt 0:00:35]} Qe5 {[%emt 0:02:09]} 24. Rxa7 {[%emt 0:02:52]} Nf5 {[%emt 0:01:48]} 25. Rb7 {[%emt 0:07:45]} Bf6 {[%emt 0:02:25]} 26. Bf4 {[%emt 0:00:20]} Qa5 {[%emt 0:00:53]} 27. Qb5 {[%emt 0:00:44]} Bxc3 {[%emt 0:01:35]} 28. bxc3 {[%emt 0:02:04]} Qxc3 {[%emt 0:00:36]} 29. Rb8 {[%emt 0:00:58]} Qa3 {[%emt 0:02:13]} 30. Bd2 {[%emt 0:01:14]} h5 {[%emt 0:01:43]} 31. Rxf8+ {[%emt 0:02:11]} Qxf8 {[%emt 0:00:08]} 32. Qe2 {[%emt 0:00:21]} Nd4 {[%emt 0:01:31]} 33. Qe4 {[%emt 0:01:02]} Nf5 {[%emt 0:00:24]} 1/2-1/2

[Event "Manhem Chess Week-Elo 2019"]
[Site "Moelnlycke"]
[Date "2019.08.13"]
[Round "4.7"]
[White "Johansson, Eva"]
[Black "Hattab, Hashim"]
[Result "1-0"]
[ECO "A46"]
[WhiteElo "1869"]
[BlackElo "1868"]
[Annotator "NA"]
[PlyCount "75"]
[EventDate "2019.08.10"]
[EventType "tourn"]
[EventCountry "SWE"]
[SourceTitle "playchess.com"]
[Source "ChessBase"]
[SourceQuality "1"]
[TimeControl "40/5400+30:1800+30"]

1. d4 {[%emt 0:00:00]} Nf6 {[%emt 0:00:04]} 2. g3 {[%emt 0:00:00]} d6 {[%emt 0:01:08]} 3. Bg2 {[%emt 0:00:13]} c6 {[%emt 0:00:15]} 4. Nf3 {[%emt 0:01:54]} Bg4 {[%emt 0:01:13]} 5. h3 {[%emt 0:00:35]} Bxf3 {[%emt 0:00:07]} 6. Bxf3 {[%emt 0:00:18]} Nbd7 {[%emt 0:00:39]} 7. c4 {[%emt 0:02:04]} e5 {[%emt 0:00:21]} 8. Nc3 {[%emt 0:03:41]} Be7 {[%emt 0:04:03]} 9. O-O $14 {[%emt 0:03:49]} Qb6 {[%emt 0:02:06]} 10. e3 {[%emt 0:01:53]} Rd8 {[%emt 0:03:18]} 11. b3 {[%emt 0:02:29]} O-O {[%emt 0:02:56]} 12. Bb2 {[%emt 0:03:20]} Rfe8 {[%emt 0:00:36]} 13. Qc2 {[%emt 0:02:48]} Bf8 {[%emt 0:01:46]} 14. Bg2 {[%emt 0:01:03]} a5 {[%emt 0:01:31]} 15. Rad1 {[%emt 0:01:55]} g6 {[%emt 0:04:46]} 16. Rfe1 {[%emt 0:03:34]} Nh5 {[%emt 0:01:51]} 17. Ne4 {[%emt 0:06:46]} Qc7 {[%emt 0:03:26]} 18. dxe5 {[%emt 0:04:22]} dxe5 {[%emt 0:00:59]} 19. c5 {[%emt 0:07:32]} Nhf6 {[%emt 0:08:55]} 20. Nxf6+ {[%emt 0:06:46]} Nxf6 {[%emt 0:00:18]} 21. a3 {[%emt 0:00:50]} Rd7 {[%emt 0:05:19]} 22. Rxd7 {[%emt 0:00:52]} Nxd7 {[%emt 0:01:14]} 23. b4 {[%emt 0:00:14]} Bg7 {[%emt 0:03:20]} 24. Rd1 {[%emt 0:02:05]} axb4 {[%emt 0:04:10]} 25. axb4 {[%emt 0:00:02]} h5 {[%emt 0:00:52]} 26. Qc4 {[%emt 0:04:20]} Nf8 {[%emt 0:01:29]} 27. b5 {[%emt 0:03:41]} cxb5 {[%emt 0:01:29]} 28. Qxb5 {[%emt 0:00:12]} Rb8 {[%emt 0:01:50]} 29. Ba3 {[%emt 0:02:37]} Bf6 {[%emt 0:03:55]} 30. Bd5 {[%emt 0:07:00]} h4 {[%emt 0:04:42]} 31. e4 {[%emt 0:02:31]} hxg3 {[%emt 0:00:29]} 32. fxg3 {[%emt 0:01:33]} Kg7 {[%emt 0:01:44]} 33. Kg2 {[%emt 0:02:16]} Nh7 {[%emt 0:04:30]} 34. Bxf7 {[%emt 0:01:44]} Qxf7 {[%emt 0:02:04]} 35. Rd7 {[%emt 0:00:18]} Be7 {[%emt 0:00:57]} 36. c6 {[%emt 0:02:18]} Qa2+ {[%emt 0:10:31]} 37. Bb2 {[%emt 0:00:09]} Kf8 {[%emt 0:03:01]} 38. Qxe5 {[%emt 0:04:33]} 1-0

[Event "Manhem Chess Week-Elo 2019"]
[Site "Moelnlycke"]
[Date "2019.08.13"]
[Round "4.8"]
[White "Peterson, Rolf"]
[Black "Jacobsson, Lennart"]
[Result "0-1"]
[ECO "A47"]
[WhiteElo "1580"]
[BlackElo "1754"]
[Annotator "NA"]
[PlyCount "82"]
[EventDate "2019.08.10"]
[EventType "tourn"]
[EventCountry "SWE"]
[SourceTitle "playchess.com"]
[Source "ChessBase"]
[SourceQuality "1"]
[TimeControl "40/5400+30:1800+30"]

1. d4 {[%emt 0:00:18]} Nf6 {[%emt 0:00:30]} 2. Nf3 {[%emt 0:00:32]} c5 {[%emt 0:00:13]} 3. c3 {[%emt 0:00:16]} b6 {[%emt 0:04:18]} 4. Bf4 {[%emt 0:00:26]} e6 {[%emt 0:00:21]} 5. e3 {[%emt 0:00:14]} Bb7 {[%emt 0:00:37]} 6. Na3 {[%emt 0:00:42]} cxd4 {[%emt 0:03:34]} 7. Nb5 {[%emt 0:00:49]} d6 {[%emt 0:07:17]} 8. exd4 {[%emt 0:10:24]} Be7 {[%emt 0:01:29]} 9. Bd3 {[%emt 0:02:33]} O-O {[%emt 0:00:48]} 10. O-O {[%emt 0:01:12]} a6 {[%emt 0:08:20]} 11. Na3 {[%emt 0:00:37]} Qc7 {[%emt 0:01:12]} 12. Nc4 {[%emt 0:05:38]} Nbd7 {[%emt 0:06:40]} 13. Ncd2 {[%emt 0:02:54]} Rac8 {[%emt 0:01:39]} 14. Qc2 {[%emt 0:01:01]} h6 {[%emt 0:01:45]} 15. Rae1 {[%emt 0:00:55]} Nd5 {[%emt 0:01:05]} 16. Be3 {[%emt 0:06:26]} Nb4 {[%emt 0:02:25]} 17. Qb1 {[%emt 0:00:14]} Nxd3 {[%emt 0:00:12]} 18. Qxd3 {[%emt 0:00:11]} Nf6 {[%emt 0:00:48]} 19. Bf4 {[%emt 0:03:25]} Nd5 {[%emt 0:01:19]} 20. Bg3 {[%emt 0:00:54]} Rfd8 {[%emt 0:08:26]} 21. Ra1 {[%emt 0:07:02]} Qc6 {[%emt 0:05:25]} 22. Rfd1 {[%emt 0:04:15]} b5 {[%emt 0:02:47]} 23. Ne1 {[%emt 0:01:27]} Nb6 {[%emt 0:01:25]} 24. Qf3 {[%emt 0:03:39]} Qd7 {[%emt 0:01:19]} 25. Qe2 {[%emt 0:00:33]} Bd5 {[%emt 0:02:09]} 26. Nb3 {[%emt 0:01:49]} Qb7 {[%emt 0:02:33]} 27. f3 {[%emt 0:00:32]} Nc4 {[%emt 0:00:31]} 28. Nd3 {[%emt 0:07:22]} a5 {[%emt 0:04:37]} 29. Nd2 {[%emt 0:00:38]} Kf8 {[%emt 0:16:55]} 30. Nf4 {[%emt 0:12:44]} Nxb2 {[%emt 0:08:11]} 31. Nxd5 {[%emt 0:00:14]} Qxd5 {[%emt 0:00:17]} 32. Rdb1 {[%emt 0:04:24]} Nc4 {[%emt 0:01:34]} 33. Nxc4 {[%emt 0:01:09]} Rxc4 {[%emt 0:00:26]} 34. Qb2 {[%emt 0:00:35]} b4 {[%emt 0:01:01]} 35. Be1 {[%emt 0:01:23]} Bf6 {[%emt 0:02:23]} 36. Rc1 {[%emt 0:04:05]} Rxd4 {[%emt 0:01:19]} 37. Bf2 {[%emt 0:01:54]} Rd2 {[%emt 0:00:14]} 38. Qb3 {[%emt 0:00:50]} Bxc3 {[%emt 0:01:11]} 39. Rab1 {[%emt 0:02:56]} Rxa2 {[%emt 0:00:53]} 40. Rxc3 {[%emt 0:04:10]} bxc3 {[%emt 0:00:14]} 41. Qxc3 {[%emt 0:30:11]} Qd2 {[%emt 0:30:51]} 0-1

[Event "Manhem Chess Week-Elo 2019"]
[Site "Moelnlycke"]
[Date "2019.08.14"]
[Round "5.2"]
[White "Rasti, Arvin"]
[Black "Olsson, William"]
[Result "1-0"]
[ECO "D47"]
[WhiteElo "2220"]
[BlackElo "2113"]
[Annotator "NA"]
[PlyCount "41"]
[EventDate "2019.08.10"]
[EventType "tourn"]
[EventCountry "SWE"]
[SourceTitle "playchess.com"]
[Source "ChessBase"]
[SourceQuality "1"]
[TimeControl "40/5400+30:1800+30"]

1. d4 {[%emt 0:00:00]} d5 {[%emt 0:00:00]} 2. c4 {[%emt 0:00:00]} c6 {[%emt 0:00:00]} 3. Nf3 {[%emt 0:00:00]} Nf6 {[%emt 0:00:00]} 4. Nc3 {[%emt 0:00:00]} e6 {[%emt 0:00:00]} 5. e3 {[%emt 0:00:04]} Nbd7 {[%emt 0:00:00]} 6. Bd3 {[%emt 0:00:07]} dxc4 {[%emt 0:00:00]} 7. Bxc4 {[%emt 0:00:02]} b5 {[%emt 0:00:00]} 8. Bd3 {[%emt 0:00:04]} Bb7 {[%emt 0:00:34]} 9. e4 {[%emt 0:00:07]} b4 {[%emt 0:03:01]} 10. Na4 {[%emt 0:00:01]} c5 {[%emt 0:03:59]} 11. e5 {[%emt 0:00:42]} Nd5 {[%emt 0:00:05]} 12. O-O {[%emt 0:00:05]} a6 {[%emt 0:04:44]} 13. Bg5 {[%emt 0:09:43]} Qb8 {[%emt 0:06:05]} 14. Nxc5 {[%emt 0:09:39]} Nxc5 {[%emt 0:00:13]} 15. dxc5 {[%emt 0:00:05]} Bxc5 {[%emt 0:00:11]} 16. Qa4+ {[%emt 0:01:59]} Kf8 {[%emt 0:00:08]} 17. Rac1 {[%emt 0:01:09]} Qa7 {[%emt 0:01:12]} 18. Be4 {[%emt 0:11:34]} h6 {[%emt 0:04:48]} 19. Bd2 {[%emt 0:04:06]} Qb6 {[%emt 0:01:27]} 20. Bxd5 {[%emt 0:00:47]} Bxd5 {[%emt 0:07:23]} 21. Rxc5 {[%emt 0:00:12]} 1-0

[Event "Manhem Chess Week-Elo 2019"]
[Site "Moelnlycke"]
[Date "2019.08.14"]
[Round "5.3"]
[White "Moller, Mikael"]
[Black "Berggren Torell, Harald"]
[Result "0-1"]
[ECO "B09"]
[WhiteElo "1957"]
[BlackElo "2137"]
[Annotator "NA"]
[PlyCount "40"]
[EventDate "2019.08.10"]
[EventType "tourn"]
[EventCountry "SWE"]
[SourceTitle "playchess.com"]
[Source "ChessBase"]
[SourceQuality "1"]
[TimeControl "40/5400+30:1800+30"]

1. d4 {[%emt 0:00:00]} d6 {[%emt 0:00:00]} 2. e4 {[%emt 0:00:00]} Nf6 {[%emt 0:00:00]} 3. Nc3 {[%emt 0:00:00]} g6 {[%emt 0:00:00]} 4. f4 {[%emt 0:00:26]} Bg7 {[%emt 0:00:02]} 5. Nf3 {[%emt 0:00:00]} O-O {[%emt 0:00:05]} 6. Be3 {[%emt 0:00:00]} Nbd7 {[%emt 0:01:01]} 7. e5 {[%emt 0:00:41]} Ng4 {[%emt 0:01:04]} 8. Bg1 {[%emt 0:00:10]} c5 {[%emt 0:03:39]} 9. dxc5 {[%emt 0:14:32]} dxe5 {[%emt 0:01:12]} 10. h3 {[%emt 0:04:10]} Nh6 {[%emt 0:00:07]} 11. Qd2 {[%emt 0:00:20]} Nf5 {[%emt 0:05:21]} 12. Bf2 {[%emt 0:00:53]} exf4 {[%emt 0:00:44]} 13. Bd3 {[%emt 0:01:54]} Ne5 {[%emt 0:03:49]} 14. Nxe5 {[%emt 0:03:05]} Bxe5 {[%emt 0:02:42]} 15. O-O-O {[%emt 0:00:45]} Qa5 {[%emt 0:02:11]} 16. Kb1 {[%emt 0:02:51]} Be6 {[%emt 0:09:09]} 17. a3 {[%emt 0:07:50]} Ne3 {[%emt 0:03:00]} 18. Nd5 {[%emt 0:01:29]} Qxd2 {[%emt 0:00:48]} 19. Nxe7+ {[%emt 0:00:21]} Kg7 {[%emt 0:00:38]} 20. Rxd2 {[%emt 0:00:03]} Rfe8 {[%emt 0:00:09]} 0-1

[Event "Manhem Chess Week-Elo 2019"]
[Site "Moelnlycke"]
[Date "2019.08.14"]
[Round "5.4"]
[White "Bergre, Joachim"]
[Black "Fransson, Lennart"]
[Result "0-1"]
[ECO "A21"]
[WhiteElo "1928"]
[BlackElo "2014"]
[Annotator "NA"]
[PlyCount "50"]
[EventDate "2019.08.10"]
[EventType "tourn"]
[EventCountry "SWE"]
[SourceTitle "playchess.com"]
[Source "ChessBase"]
[SourceQuality "1"]
[TimeControl "40/5400+30:1800+30"]

1. Nf3 {[%emt 0:00:00]} f5 {[%emt 0:01:25]} 2. c4 {[%emt 0:00:07]} Nf6 {[%emt 0:00:08]} 3. Nc3 {[%emt 0:00:16]} d6 {[%emt 0:00:46]} 4. g3 {[%emt 0:01:28]} e5 {[%emt 0:00:16]} 5. d3 {[%emt 0:00:21]} Be7 {[%emt 0:01:11]} 6. Bg2 {[%emt 0:00:20]} O-O {[%emt 0:00:17]} 7. O-O {[%emt 0:00:08]} Qe8 {[%emt 0:00:33]} 8. Bd2 {[%emt 0:01:37]} Qh5 {[%emt 0:06:52]} 9. Nd5 {[%emt 0:11:41]} Bd8 {[%emt 0:00:14]} 10. Rc1 {[%emt 0:06:10]} f4 {[%emt 0:04:43]} 11. b4 {[%emt 0:15:16]} Nxd5 {[%emt 0:02:51]} 12. cxd5 {[%emt 0:00:10]} Rf6 {[%emt 0:00:52]} 13. Rc4 {[%emt 0:15:54]} g5 {[%emt 0:04:28]} 14. Bc1 {[%emt 0:05:19]} Rh6 {[%emt 0:00:58]} 15. Re1 {[%emt 0:02:06]} b5 {[%emt 0:04:34]} 16. Rc2 {[%emt 0:04:16]} Bh3 {[%emt 0:21:16]} 17. Bh1 {[%emt 0:00:42]} Bf5 {[%emt 0:03:45]} 18. Bg2 {[%emt 0:01:12]} Nd7 {[%emt 0:00:54]} 19. e3 {[%emt 0:08:48]} g4 {[%emt 0:05:39]} 20. exf4 {[%emt 0:00:09]} gxf3 {[%emt 0:00:21]} 21. Qxf3 {[%emt 0:00:10]} Qxh2+ {[%emt 0:04:42]} 22. Kf1 {[%emt 0:00:06]} Bh3 {[%emt 0:00:59]} 23. fxe5 {[%emt 0:03:43]} Bxg2+ {[%emt 0:06:50]} 24. Qxg2 {[%emt 0:00:09]} Qh1+ {[%emt 0:00:10]} 25. Qxh1 {[%emt 0:00:10]} Rxh1+ {[%emt 0:00:06]} 0-1

[Event "Manhem Chess Week-Elo 2019"]
[Site "Moelnlycke"]
[Date "2019.08.14"]
[Round "5.5"]
[White "Hattab, Hashim"]
[Black "Degerfeldt, Sven"]
[Result "1-0"]
[ECO "D31"]
[WhiteElo "1868"]
[BlackElo "1918"]
[Annotator "NA"]
[PlyCount "109"]
[EventDate "2019.08.10"]
[EventType "tourn"]
[EventCountry "SWE"]
[SourceTitle "playchess.com"]
[Source "ChessBase"]
[SourceQuality "1"]
[TimeControl "40/5400+30:1800+30"]

1. d4 {[%emt 0:00:14]} d5 {[%emt 0:00:03]} 2. c4 {[%emt 0:00:09]} e6 {[%emt 0:00:07]} 3. Nc3 {[%emt 0:00:21]} a6 {[%emt 0:00:36]} 4. cxd5 {[%emt 0:00:54]} exd5 {[%emt 0:00:02]} 5. Bf4 {[%emt 0:01:36]} Nf6 {[%emt 0:00:17]} 6. e3 {[%emt 0:00:55]} Bd6 {[%emt 0:00:39]} 7. Bg3 {[%emt 0:00:39]} O-O {[%emt 0:00:37]} 8. Bd3 {[%emt 0:00:15]} Re8 {[%emt 0:03:54]} 9. Nf3 {[%emt 0:02:14]} c6 {[%emt 0:02:19]} 10. Qb3 {[%emt 0:00:31]} b5 {[%emt 0:01:28]} 11. Ne5 {[%emt 0:01:13]} Be6 {[%emt 0:16:44]} 12. Rc1 {[%emt 0:02:49]} c5 {[%emt 0:20:00]} 13. Bb1 {[%emt 0:02:36]} c4 {[%emt 0:06:32]} 14. Qc2 {[%emt 0:00:59]} g6 {[%emt 0:02:19]} 15. Qd1 {[%emt 0:00:11]} b4 {[%emt 0:00:22]} 16. Ne2 {[%emt 0:00:40]} Nh5 {[%emt 0:08:49]} 17. f4 {[%emt 0:03:53]} f5 {[%emt 0:01:20]} 18. Bf2 {[%emt 0:00:32]} Nd7 {[%emt 0:03:22]} 19. h3 {[%emt 0:01:12]} Ndf6 {[%emt 0:04:53]} 20. Bh4 {[%emt 0:03:35]} Qc7 {[%emt 0:00:00]} 21. Rg1 {[%emt 0:04:12]} Ne4 {[%emt 0:09:15]} 22. g4 {[%emt 0:04:10]} Ng7 {[%emt 0:00:00]} 23. Bxe4 {[%emt 0:01:58]} fxe4 {[%emt 0:00:00]} 24. Bg5 {[%emt 0:04:48]} Be7 {[%emt 0:00:00]} 25. Qa4 {[%emt 0:01:04]} a5 {[%emt 0:00:00]} 26. h4 {[%emt 0:02:38]} Bxg5 {[%emt 0:00:00]} 27. hxg5 {[%emt 0:01:24]} Rf8 {[%emt 0:00:24]} 28. Rh1 {[%emt 0:00:42]} Qc8 {[%emt 0:00:21]} 29. Rh4 {[%emt 0:01:08]} Ra7 {[%emt 0:01:31]} 30. Kf2 {[%emt 0:00:44]} Bd7 {[%emt 0:01:13]} 31. Qc2 {[%emt 0:01:07]} Ne6 {[%emt 0:00:33]} 32. Kg2 {[%emt 0:01:21]} Be8 {[%emt 0:00:27]} 33. Qd2 {[%emt 0:05:29]} Rg7 {[%emt 0:02:07]} 34. Qe1 {[%emt 0:05:34]} Qb7 {[%emt 0:00:14]} 35. Qg3 {[%emt 0:01:01]} a4 {[%emt 0:00:14]} 36. Rh2 {[%emt 0:02:17]} Nd8 {[%emt 0:00:22]} 37. Qh4 {[%emt 0:01:10]} Nc6 {[%emt 0:00:32]} 38. Kh1 {[%emt 0:01:08]} Qc7 {[%emt 0:01:54]} 39. Rf2 {[%emt 0:01:44]} Qb6 {[%emt 0:00:43]} 40. Qg3 {[%emt 0:00:58]} Nxe5 {[%emt 0:02:51]} 41. dxe5 {[%emt 0:30:33]} Bd7 {[%emt 0:32:30]} 42. Nd4 {[%emt 0:00:44]} Qd8 {[%emt 0:02:36]} 43. Rg1 {[%emt 0:03:12]} Qe7 {[%emt 0:00:45]} 44. e6 {[%emt 0:08:01]} Be8 {[%emt 0:05:33]} 45. Rh2 {[%emt 0:03:47]} a3 {[%emt 0:02:02]} 46. bxa3 {[%emt 0:01:07]} bxa3 {[%emt 0:00:01]} 47. Qh4 {[%emt 0:00:31]} Qb4 {[%emt 0:00:00]} 48. f5 {[%emt 0:00:00]} gxf5 {[%emt 0:00:00]} 49. gxf5 {[%emt 0:00:00]} Qc3 {[%emt 0:00:00]} 50. Qf2 {[%emt 0:00:00]} Rb7 {[%emt 0:00:00]} 51. g6 {[%emt 0:00:00]} Bxg6 {[%emt 0:00:00]} 52. fxg6 {[%emt 0:00:00]} Rxf2 {[%emt 0:00:00]} 53. gxh7+ {[%emt 0:00:00]} Kf8 {[%emt 0:00:00]} 54. h8=Q+ {[%emt 0:00:00]} Ke7 {[%emt 0:00:00]} 55. Rxf2 {[%emt 0:00:00]} 1-0

[Event "Manhem Chess Week-Elo 2019"]
[Site "Moelnlycke"]
[Date "2019.08.14"]
[Round "5.6"]
[White "Bohlin, Jan"]
[Black "Peterson, Rolf"]
[Result "1-0"]
[ECO "A52"]
[WhiteElo "1724"]
[BlackElo "1580"]
[Annotator "NA"]
[PlyCount "97"]
[EventDate "2019.08.10"]
[EventType "tourn"]
[EventCountry "SWE"]
[SourceTitle "playchess.com"]
[Source "ChessBase"]
[SourceQuality "1"]
[TimeControl "40/5400+30:1800+30"]

1. d4 {[%emt 0:00:00]} Nf6 {[%emt 0:00:16]} 2. c4 {[%emt 0:00:00]} e5 {[%emt 0:00:48]} 3. dxe5 {[%emt 0:00:00]} Ng4 {[%emt 0:00:07]} 4. Nf3 {[%emt 0:01:00]} Bc5 {[%emt 0:01:20]} 5. e3 {[%emt 0:00:55]} Nc6 {[%emt 0:00:21]} 6. Be2 {[%emt 0:01:17]} d6 {[%emt 0:08:20]} 7. exd6 {[%emt 0:01:49]} Bxd6 {[%emt 0:02:47]} 8. O-O {[%emt 0:13:39]} O-O {[%emt 0:00:48]} 9. Nc3 {[%emt 0:11:11]} Be6 {[%emt 0:03:51]} 10. Ne4 {[%emt 0:12:53]} Nge5 {[%emt 0:13:03]} 11. Nxd6 {[%emt 0:01:21]} cxd6 {[%emt 0:01:56]} 12. b3 {[%emt 0:04:40]} Qc7 {[%emt 0:03:34]} 13. Bb2 {[%emt 0:05:11]} Rfd8 {[%emt 0:01:13]} 14. Qc2 {[%emt 0:03:13]} Rac8 {[%emt 0:11:16]} 15. Rac1 {[%emt 0:05:07]} f6 {[%emt 0:01:49]} 16. Rfd1 {[%emt 0:01:17]} Qf7 {[%emt 0:02:00]} 17. Nd4 {[%emt 0:06:42]} Nxd4 {[%emt 0:08:53]} 18. exd4 {[%emt 0:03:17]} Ng6 {[%emt 0:00:54]} 19. d5 {[%emt 0:00:00]} Bd7 {[%emt 0:00:41]} 20. Bd3 {[%emt 0:02:21]} f5 {[%emt 0:05:18]} 21. Re1 {[%emt 0:03:10]} Nf4 {[%emt 0:00:54]} 22. Qd2 {[%emt 0:01:22]} Nxd3 {[%emt 0:00:50]} 23. Qxd3 {[%emt 0:00:02]} Re8 {[%emt 0:00:56]} 24. Qd4 {[%emt 0:02:39]} b6 {[%emt 0:01:33]} 25. Kf1 {[%emt 0:05:21]} Rxe1+ {[%emt 0:00:10]} 26. Rxe1 {[%emt 0:00:09]} Re8 {[%emt 0:00:38]} 27. Rxe8+ {[%emt 0:00:23]} Bxe8 {[%emt 0:00:08]} 28. f4 {[%emt 0:01:47]} Bd7 {[%emt 0:01:42]} 29. Kf2 {[%emt 0:02:15]} Kf8 {[%emt 0:03:02]} 30. Ba3 {[%emt 0:02:13]} Qe7 {[%emt 0:00:53]} 31. b4 {[%emt 0:03:23]} Kf7 {[%emt 0:01:29]} 32. g3 {[%emt 0:00:34]} Qf6 {[%emt 0:00:18]} 33. Qxf6+ {[%emt 0:02:33]} Kxf6 {[%emt 0:00:11]} 34. Ke3 {[%emt 0:00:47]} a6 {[%emt 0:02:30]} 35. Bb2+ {[%emt 0:00:53]} Kf7 {[%emt 0:00:06]} 36. Bd4 {[%emt 0:00:39]} b5 {[%emt 0:01:22]} 37. c5 {[%emt 0:00:36]} Bc8 {[%emt 0:00:51]} 38. c6 {[%emt 0:01:21]} g6 {[%emt 0:00:10]} 39. Bb6 {[%emt 0:01:26]} Ke7 {[%emt 0:05:54]} 40. Kf3 {[%emt 0:00:24]} h6 {[%emt 0:00:34]} 41. Bc7 {[%emt 0:04:28]} g5 {[%emt 0:01:35]} 42. h4 {[%emt 0:00:42]} g4+ {[%emt 0:02:00]} 43. Ke3 {[%emt 0:00:37]} h5 {[%emt 0:00:27]} 44. Kd4 {[%emt 0:00:27]} Ke8 {[%emt 0:01:19]} 45. Bxd6 {[%emt 0:00:10]} Kd8 {[%emt 0:00:15]} 46. Ke5 {[%emt 0:00:40]} Ke8 {[%emt 0:00:48]} 47. Bc5 {[%emt 0:00:37]} Kd8 {[%emt 0:00:44]} 48. d6 {[%emt 0:00:17]} a5 {[%emt 0:00:31]} 49. d7 {[%emt 0:00:19]} 1-0